bitfinex-derivatives/quotes_SOLF0:USTF0_20260215
["timestamp","ask_amount","ask_price","bid_price","bid_amount"]
[1771186988945,7.16924032,85.488,85.45,2.8059955]
[1771186989143,7.16924032,85.487,85.45,2.8059955]
[1771186989347,10.5345,85.489,85.45,2.8059955]
[1771186989348,7.16924032,85.486,85.45,2.8059955]
[1771186989548,7.16924032,85.485,85.45,2.8059955]
[1771186989751,7.16924032,85.484,85.45,2.8059955]
[1771186989947,7.16924032,85.483,85.45,2.8059955]
[1771186990148,10.5359,85.478,85.431,5.18379822]
[1771186990451,7.16924032,85.477,85.431,5.18379822]
[1771186990652,7.16924032,85.476,85.431,5.18379822]
[1771186990840,7.16924032,85.475,85.431,5.18379822]
[1771186991045,7.16924032,85.474,85.431,5.18379822]
[1771186991350,10.5359,85.478,85.431,5.18379822]
[1771186991351,7.16924032,85.473,85.431,5.18379822]
[1771186991552,7.16924032,85.472,85.431,5.18379822]
[1771186991849,7.16924032,85.471,85.433,5.18300511]
[1771186992050,10.5359,85.478,85.44,2.8059955]
[1771186992239,7.17912543,85.477,85.44,2.8059955]
[1771186992545,7.17912543,85.476,85.44,2.8059955]
[1771186992750,7.17912543,85.475,85.44,2.8059955]
[1771186992950,7.17912543,85.474,85.44,2.8059955]
[1771186993151,7.17912543,85.473,85.44,2.8059955]
[1771186993351,7.17912543,85.472,85.44,2.8059955]
[1771186993551,7.17912543,85.471,85.44,2.8059955]
[1771186993751,7.17912543,85.47,85.44,2.8059955]
[1771186993954,10.5359,85.478,85.44,2.8059955]
[1771186994152,7.18046521,85.477,85.44,2.8059955]
[1771186994352,7.18046521,85.476,85.44,2.8059955]
[1771186994552,7.18046521,85.475,85.44,2.8059955]
[1771186994754,7.18046521,85.474,85.44,2.8059955]
[1771186994953,7.18046521,85.473,85.44,2.8059955]
[1771186995154,7.18046521,85.472,85.44,2.8059955]
[1771186995354,7.18046521,85.471,85.44,2.8059955]
[1771186995549,10.5359,85.478,85.44,2.8059955]
[1771186995550,7.18046521,85.47,85.44,2.8059955]
[1771186995855,10.5359,85.478,85.44,2.8059955]
[1771186996056,7.18199777,85.477,85.44,2.8059955]
[1771186996359,7.18199777,85.476,85.441,5.17823449]
[1771186996654,10.5359,85.478,85.441,5.17823449]
[1771186996655,7.18199777,85.475,85.441,5.17823449]
[1771186996853,7.18199777,85.474,85.441,5.17823449]
[1771186997055,7.18199777,85.473,85.441,5.17823449]
[1771186997351,7.18199777,85.472,85.441,5.17823449]
[1771186997550,7.18199777,85.471,85.441,5.17823449]
[1771186997754,7.18199777,85.47,85.441,5.17823449]
[1771186997950,7.18199777,85.469,85.441,5.17823449]
[1771186998253,10.5359,85.478,85.441,5.17823449]
[1771186998454,7.18597196,85.477,85.441,5.17823449]
[1771186998654,7.18597196,85.476,85.441,5.17823449]
[1771186998849,7.18597196,85.475,85.441,5.17823449]
[1771186999049,7.18597196,85.474,85.441,5.17823449]
[1771186999246,7.18597196,85.473,85.441,5.17823449]
[1771186999451,7.18597196,85.472,85.441,5.17823449]
[1771186999646,7.18597196,85.471,85.441,5.17823449]
[1771186999957,7.18597196,85.47,85.441,5.17823449]
[1771187000157,7.18597196,85.469,85.441,5.17823449]
[1771187000359,7.18597196,85.468,85.441,5.17823449]
[1771187000558,7.18597196,85.467,85.441,5.17823449]
[1771187000755,7.18597196,85.466,85.441,5.17823449]
[1771187000956,10.5359,85.478,85.441,5.17823449]
[1771187001256,7.17020141,85.477,85.441,5.17823449]
[1771187001457,7.17020141,85.476,85.441,5.17823449]
[1771187001657,7.17020141,85.475,85.441,5.17823449]
[1771187001856,7.17020141,85.474,85.441,5.17823449]
[1771187002056,7.17020141,85.473,85.441,5.17823449]
[1771187002257,7.17020141,85.472,85.441,5.17823449]
[1771187002559,7.17020141,85.471,85.441,5.17823449]
[1771187002761,7.17020141,85.47,85.441,5.17823449]
[1771187002955,7.17020141,85.469,85.441,5.17823449]
[1771187003148,7.17020141,85.468,85.441,5.17823449]
[1771187003349,7.17020141,85.467,85.441,5.17823449]
[1771187003561,7.17020141,85.466,85.441,5.17823449]
[1771187003763,7.17020141,85.465,85.441,5.17823449]
[1771187004060,7.17320449,85.464,85.441,5.17823449]
[1771187004256,10.5359,85.478,85.43,2.80493469]
[1771187004458,7.17382944,85.477,85.431,5.14717265]
[1771187004652,10.5359,85.478,85.431,5.14717265]
[1771187004653,7.17382944,85.476,85.431,5.14717265]
[1771187004854,7.17382944,85.475,85.431,5.14717265]
[1771187005049,7.17382944,85.474,85.431,5.14717265]
[1771187005252,7.17382944,85.473,85.431,5.14717265]
[1771187005560,7.17382944,85.472,85.431,5.14717265]
[1771187005760,7.17382944,85.471,85.432,5.144755]
[1771187005961,7.17382944,85.47,85.432,5.144755]
[1771187006162,7.17382944,85.469,85.432,5.144755]
[1771187006363,7.17382944,85.468,85.432,5.144755]
[1771187006552,7.17382944,85.467,85.432,5.144755]
[1771187006757,7.17382944,85.466,85.432,5.144755]
[1771187006958,7.17382944,85.465,85.432,5.144755]
[1771187007158,7.17382944,85.464,85.432,5.144755]
[1771187007366,7.17382944,85.463,85.432,5.144755]
[1771187007565,7.17382944,85.462,85.432,5.144755]
[1771187007865,7.17382944,85.461,85.432,5.144755]
[1771187008065,7.17382944,85.46,85.423,10.5425]
[1771187008263,7.17717365,85.459,85.42,5.12758611]
[1771187008567,7.17717365,85.458,85.42,5.12758611]
[1771187008761,7.17717365,85.457,85.42,5.12758611]
[1771187008965,7.17717365,85.456,85.42,5.12758611]
[1771187009164,7.17717365,85.455,85.42,7.9325208]
[1771187009366,7.17717365,85.454,85.421,5.11817548]
[1771187009565,7.17717365,85.453,85.421,5.11817548]
[1771187009765,7.17717365,85.452,85.421,5.11817548]
[1771187009965,10.5372,85.468,85.421,5.11817548]
[1771187010168,7.17672663,85.467,85.421,5.11817548]
[1771187010364,7.17672663,85.466,85.421,5.11817548]
[1771187010678,7.17672663,85.465,85.421,5.11817548]
[1771187010969,7.17672663,85.464,85.441,5.11753235]
[1771187011166,7.17672663,85.463,85.441,5.11753235]
[1771187011367,7.17672663,85.462,85.441,5.11753235]
[1771187011568,7.17672663,85.461,85.441,5.11753235]
[1771187011768,19.2974818,85.479,85.441,5.11753235]
[1771187011968,7.17639833,85.478,85.441,5.11753235]
[1771187012266,7.17639833,85.477,85.45,2.80493469]
[1771187012463,7.17639833,85.476,85.45,2.80493469]
[1771187012662,7.17639833,85.475,85.45,2.80493469]
[1771187012862,7.17639833,85.474,85.45,2.80493469]
[1771187013064,7.17639833,85.473,85.45,2.80493469]
[1771187013365,7.17639833,85.472,85.45,2.80493469]
[1771187013566,7.17639833,85.471,85.45,2.80493469]
[1771187013761,19.2959818,85.492,85.45,2.80493469]
[1771187013962,15.93794119,85.491,85.45,2.80493469]
[1771187014164,15.93794119,85.49,85.45,2.80493469]
[1771187014359,15.93794119,85.489,85.45,2.80493469]
[1771187014563,15.93794119,85.488,85.45,2.80493469]
[1771187014763,15.93794119,85.487,85.45,2.80493469]
[1771187015070,15.93794119,85.486,85.441,5.11753235]
[1771187015366,127.22,85.511,84.784,385.44019975]
[1771187015367,5.939e-05,85.485,85.47,2.80493469]
[1771187015670,8.7617818,85.519,85.471,5.05665066]
[1771187015871,8.7617818,85.518,85.471,5.05665066]
[1771187016070,8.7617818,85.517,85.471,5.05665066]
[1771187016269,8.7617818,85.516,85.471,5.05665066]
[1771187016475,8.7617818,85.515,85.471,5.05665066]
[1771187016671,8.7617818,85.514,85.471,5.05665066]
[1771187016871,10.5317,85.512,85.471,5.05665066]
[1771187017164,8.7617818,85.511,85.471,5.05665066]
[1771187017370,8.7617818,85.51,85.471,5.05665066]
[1771187017665,8.7617818,85.509,85.471,5.05665066]
[1771187017866,8.7617818,85.508,85.471,5.05665066]
[1771187018071,8.7617818,85.507,85.471,5.05665066]
[1771187018271,10.5319,85.51,85.471,5.05665066]
[1771187018475,8.7617818,85.509,85.47,2.80493469]
[1771187018672,8.7617818,85.508,85.47,2.80493469]
[1771187018869,2.80493469,85.52,85.47,2.80493469]
[1771187018870,8.7617818,85.507,85.47,2.80493469]
[1771187019074,8.7617818,85.519,85.47,2.80493469]
[1771187019274,8.7617818,85.518,85.47,2.80493469]
[1771187019572,8.7617818,85.517,85.46,2.80493469]
[1771187019869,10.5325,85.505,85.46,2.80493469]
[1771187020272,127.16,85.536,85.439,93.38]
[1771187020273,8.7617818,85.53,85.494,10.5338]
[1771187020471,249.8511501,85.544,85.479,5.07659449]
[1771187020772,10.5331,85.501,85.46,2.80493469]
[1771187020976,249.8511501,85.544,85.453,5.08171078]
[1771187020977,2.80493469,85.5,85.453,5.08171078]
[1771187021366,2.80493469,85.51,85.453,5.08171078]
[1771187021767,10.5334,85.498,85.453,5.08171078]
[1771187024672,10.5334,85.498,85.46,2.80493469]
[1771187025077,2.03550434,85.533,85.46,2.80493469]
[1771187025078,127.5,85.518,85.461,5.01197369]
[1771187025278,8.78511031,85.517,85.461,5.01197369]
[1771187025478,2.80493469,85.51,85.461,5.01197369]
[1771187026776,10.5321,85.508,85.461,5.01197369]
[1771187030182,8.78511031,85.517,85.461,5.01197369]
[1771187030386,138.031,85.518,85.471,5.01922558]
[1771187033180,2.80493469,85.52,85.471,15.55582558]
[1771187033376,10.5299,85.527,85.481,5.03814807]
[1771187034084,2.80493469,85.54,85.482,5.03814999]
[1771187034085,10.5287,85.537,85.482,5.03814999]
[1771187034285,129.44,85.537,85.491,5.03814999]
[1771187034485,8.76973342,85.536,85.491,5.03814999]
[1771187035487,8.76973342,85.536,85.492,5.04408354]
[1771187036079,8.76973342,85.536,85.5,2.80493469]
[1771187036275,129.44,85.537,85.5,2.80493469]
[1771187036483,129.44,85.537,85.492,5.04408354]
[1771187036883,129.44,85.537,85.494,5.05234024]
[1771187049396,129.44,85.537,85.501,5.0940916]
[1771187053299,129.44,85.537,85.495,10.5337]
[1771187054293,2.80493469,85.53,85.48,2.80493469]
[1771187054600,151.6,85.529,85.48,2.80493469]
[1771187055197,10.5296,85.529,85.481,10.5354]
[1771187055402,151.76,85.528,85.481,10.5354]
[1771187055796,2.80493469,85.5,85.454,5.09045509]
[1771187055996,2.80493469,85.49,85.441,5.09045509]
[1771187056297,151.86,85.489,85.441,5.09045509]
[1771187056701,151.94,85.488,85.441,5.09045509]
[1771187057198,10.5345,85.489,85.441,5.09045509]
[1771187057503,152.08,85.487,85.441,5.09045509]
[1771187058193,2.80493469,85.46,85.425,5.07184152]
[1771187058395,152.24,85.459,85.425,5.07184152]
[1771187060198,152.24,85.459,85.419,10.543]
[1771187060199,2.80493469,85.46,85.411,5.06742309]
[1771187060402,152.64,85.459,85.411,5.06742309]
[1771187061500,152.86,85.458,85.411,5.06742309]
[1771187061696,152.86,85.458,85.412,10.5438]
[1771187061901,152.86,85.458,85.413,5.10026852]
[1771187064311,152.86,85.458,85.394,175.46156511]
[1771187064312,153.54,85.46,85.421,5.08974081]
[1771187066515,154.0,85.467,85.431,5.09122766]
[1771187067816,154.0,85.467,85.418,5.0593501]
[1771187068721,2.80624956,85.46,85.418,5.0593501]
[1771187070219,2.80624956,85.46,85.404,10.5449]
[1771187070421,2.80624956,85.46,85.405,5.07491197]
[1771187071424,2.80624956,85.46,85.409,5.0781141]
[1771187071920,2.80624956,85.46,85.41,2.80624956]
[1771187072125,2.80624956,85.46,85.411,5.07811528]
[1771187072320,2.80624956,85.47,85.413,5.07811528]
[1771187072521,155.14,85.469,85.421,5.07811528]
[1771187076922,166.7349,85.486,85.431,5.27035262]
[1771187077830,166.7349,85.486,85.434,5.27035262]
[1771187078723,10.5358,85.479,85.434,5.27035262]
[1771187079528,2.80624956,85.47,85.422,5.28580772]
[1771187080228,156.2,85.486,85.383,176.95397537]
[1771187080229,2.80624956,85.45,85.411,10.544]
[1771187080426,2.80624956,85.45,85.409,5.28580863]
[1771187081021,10.5395,85.448,85.391,5.31936479]
[1771187081223,2.80624956,85.44,85.391,5.31936479]
[1771187082727,2.80624956,85.44,85.392,10.5464]
[1771187085128,10.5405,85.441,85.393,5.42945375]
[1771187085330,2.80624956,85.45,85.396,5.42945375]
[1771187085331,13.34564956,85.45,85.396,5.42945375]
[1771187086031,10.5402,85.443,85.396,5.42945375]
[1771187086633,2.80624956,85.44,85.396,5.42945375]
[1771187087329,10.5407,85.439,85.396,5.42945375]
[1771187094036,10.5407,85.439,85.39,2.80624956]
[1771187094037,2.80624956,85.42,85.381,5.53629045]
[1771187095743,10.5419,85.429,85.381,16.08399045]
[1771187097038,10.5419,85.429,85.382,5.55375823]
[1771187101344,2.80624956,85.43,85.344,93.42]
[1771187101345,2.80624956,85.46,85.401,5.55069066]
[1771187101645,2.80624956,85.48,85.421,5.55069066]
[1771187101941,2.80624956,85.48,85.431,5.55069117]
[1771187102337,248.34740681,85.485,85.431,5.55069117]
[1771187102338,10.5362,85.476,85.431,5.55069117]
[1771187103748,10.5351,85.484,85.44,2.80624956]
[1771187104044,10.5351,85.484,85.441,5.54426261]
[1771187104836,248.34740681,85.485,85.45,2.80624956]
[1771187105036,248.34740681,85.485,85.45,8.34145184]
[1771187105236,2.80624956,85.51,85.451,5.53520228]
[1771187106142,10.5326,85.505,85.451,5.53520228]
[1771187106337,2.80624956,85.5,85.441,5.53520278]
[1771187106748,10.5336,85.497,85.444,5.53520278]
[1771187107248,2.80624956,85.49,85.444,5.53520278]
[1771187109442,2.80624956,85.48,85.43,2.80624956]
[1771187109845,2.80624956,85.47,85.427,5.52795799]
[1771187111550,10.5375,85.465,85.411,5.52870381]
[1771187112846,10.5362,85.476,85.421,5.53040499]
[1771187113052,10.5362,85.476,85.431,5.53040499]
[1771187113752,10.5374,85.465,85.41,2.80624956]
[1771187113947,10.5374,85.465,85.411,5.5301833]
[1771187114152,10.5374,85.465,85.42,2.80624956]
[1771187114353,10.5374,85.465,85.42,8.33643286]
[1771187117355,10.5385,85.457,85.41,2.80624956]
[1771187117853,10.5396,85.448,85.4,2.80624956]
[1771187118254,10.5396,85.448,85.4,8.27742744]
[1771187118454,10.5396,85.448,85.401,5.47117788]
[1771187118753,10.5386,85.456,85.402,5.47117788]
[1771187119959,10.5386,85.456,85.41,2.80624956]
[1771187121854,10.5386,85.456,85.41,2.80681889]
[1771187122354,10.5395,85.449,85.41,2.80681889]
[1771187122552,10.5395,85.449,85.402,5.47117788]
[1771187125461,10.5395,85.449,85.41,2.80681889]
[1771187126660,10.5395,85.449,85.402,5.47117788]
[1771187135469,10.5395,85.449,85.403,16.03241649]
[1771187135672,10.5395,85.449,85.404,5.48731649]
[1771187136772,10.5395,85.449,85.405,10.5447]
[1771187138177,10.5395,85.449,85.405,16.06175405]
[1771187138474,10.5395,85.449,85.406,5.51705405]
[1771187143877,157.68,85.479,85.421,5.52006176]
[1771187144067,8.75856019,85.478,85.431,5.52006176]
[1771187144268,2.80681889,85.48,85.431,5.52006176]
[1771187145879,10.5371,85.468,85.431,5.52006176]
[1771187146075,2.80681889,85.48,85.431,5.52006176]
[1771187147581,2.80681889,85.49,85.431,5.52006176]
[1771187147777,10.5361,85.476,85.44,2.80681889]
[1771187147979,2.80681889,85.49,85.441,5.50722371]
[1771187148877,10.5352,85.484,85.441,5.50722371]
[1771187150578,2.80681889,85.49,85.441,5.50722371]
[1771187151880,10.535,85.485,85.441,5.50722371]
[1771187154981,10.5339,85.494,85.45,2.80681889]
[1771187155186,10.5339,85.494,85.451,5.50089365]
[1771187155693,10.5327,85.504,85.461,5.50089365]
[1771187157986,10.5327,85.504,85.463,5.51824862]
[1771187158689,2.80681889,85.52,85.416,21.0868]
[1771187158690,10.5314,85.514,85.47,2.80681889]
[1771187159986,10.5314,85.514,85.471,5.53867828]
[1771187160485,10.5328,85.503,85.47,2.80681889]
[1771187160686,10.5328,85.503,85.457,5.53867828]
[1771187160884,10.5328,85.503,85.461,5.56749576]
[1771187174093,2.80681889,85.49,85.445,5.5211903]
[1771187174393,2.80681889,85.5,85.445,5.5211903]
[1771187175689,10.5346,85.488,85.447,10.5396]
[1771187175889,2.80681889,85.48,85.426,5.50995218]
[1771187176090,96.16681889,85.48,85.426,5.50995218]
[1771187176691,10.5362,85.475,85.426,5.50995218]
[1771187176891,2.80681889,85.47,85.426,5.50995218]
[1771187177398,10.5375,85.465,85.415,10.5435]
[1771187177595,2.80681889,85.46,85.415,10.5435]
[1771187178497,2.80681889,85.46,85.411,5.47949099]
[1771187178498,10.5386,85.456,85.411,5.47949099]
[1771187181498,10.5386,85.456,85.371,21.0979]
[1771187181499,10.5374,85.466,85.413,5.4288545]
[1771187181801,10.5374,85.466,85.421,5.4288545]
[1771187183595,10.5362,85.475,85.431,5.42823526]
[1771187184502,10.535,85.486,85.441,5.42823548]
[1771187185496,10.535,85.486,85.407,93.4]
[1771187185497,2.80550309,85.51,85.46,2.80550309]
[1771187185690,2.80550309,85.5,85.451,5.42456905]
[1771187186703,10.5335,85.497,85.451,5.42456905]
[1771187187399,2.80550309,85.49,85.437,5.3983957]
[1771187188198,2.80550309,85.49,85.441,5.39839592]
[1771187188802,10.5345,85.489,85.441,5.39839592]
[1771187189504,10.5334,85.498,85.451,5.39859281]
[1771187189706,2.80550309,85.5,85.451,5.39859281]
[1771187190294,10.5326,85.504,85.451,5.39859281]
[1771187192903,2.80550309,85.49,85.44,2.80550309]
[1771187193109,2.80550309,85.49,85.441,5.38406842]
[1771187193608,10.5346,85.488,85.441,5.38406842]
[1771187196805,10.5358,85.478,85.43,2.80550309]
[1771187197010,2.80550309,85.47,85.424,5.3954983]
[1771187197798,10.537,85.469,85.424,5.3954983]
[1771187200311,2.80550309,85.47,85.424,5.3954983]
[1771187200515,10.5358,85.479,85.431,5.40984684]
[1771187205921,10.5367,85.471,85.431,5.40984684]
[1771187207424,2.80550309,85.47,85.431,5.40984684]
[1771187212230,10.5367,85.471,85.431,5.40984684]
[1771187213730,2.80550309,85.47,85.431,5.40984684]
[1771187215626,10.5372,85.467,85.431,5.40984684]
[1771187216027,2.80550309,85.47,85.415,10.5436]
[1771187216230,2.80550309,85.46,85.416,5.38867941]
[1771187217735,13.34360309,85.46,85.416,5.38867941]
[1771187218826,49.51414345,85.497,85.411,15.12]
[1771187218827,2.80550309,85.45,85.412,5.3939267]
[1771187219134,2.80550309,85.46,85.412,5.3939267]
[1771187219736,10.5384,85.458,85.412,5.3939267]
[1771187221236,8.7302748,85.474,85.414,5.40298757]
[1771187221237,10.5373,85.466,85.414,5.40298757]
[1771187221938,10.5373,85.466,85.421,5.40298771]
[1771187222138,2.80550309,85.47,85.421,5.40298771]
[1771187222332,2.80550309,85.46,85.421,5.40298771]
[1771187223835,10.5386,85.456,85.421,5.40298771]
[1771187227742,2.80550309,85.46,85.421,5.40298771]
[1771187228139,2.80550309,85.45,85.401,5.41180654]
[1771187228339,2.80550309,85.45,85.404,5.41180654]
[1771187229844,10.5388,85.454,85.411,5.41119859]
[1771187235146,10.5397,85.447,85.411,5.41119859]
[1771187235546,2.80550309,85.44,85.4,5.4288634]
[1771187235943,2.80550309,85.45,85.4,5.4288634]
[1771187236741,10.5405,85.441,85.4,5.4288634]
[1771187237344,2.80550309,85.44,85.4,5.4288634]
[1771187237750,10.5405,85.441,85.4,5.4288634]
[1771187237942,8.7302748,85.459,85.401,5.43043715]
[1771187238144,2.80550309,85.46,85.401,5.43043715]
[1771187238955,10.5383,85.458,85.403,5.43043715]
[1771187239846,10.5383,85.458,85.4,2.80550309]
[1771187239847,10.5383,85.458,85.406,5.43074849]
[1771187240144,8.7302748,85.464,85.41,2.80550309]
[1771187240341,8.7302748,85.464,85.398,11.98]
[1771187240342,8.7302748,85.469,85.421,5.4307486]
[1771187240542,8.7302748,85.479,85.421,5.4307486]
[1771187240742,8.7302748,85.479,85.398,11.98]
[1771187240743,8.7302748,85.484,85.431,5.4307486]
[1771187241050,2.80550309,85.48,85.431,5.4307486]
[1771187241350,8.7302748,85.479,85.431,5.4307486]
[1771187241551,8.7302748,85.478,85.431,5.4307486]
[1771187241847,2.80550309,85.47,85.421,5.42809284]
[1771187242045,8.7302748,85.469,85.421,5.42809284]
[1771187242748,10.5375,85.465,85.421,5.42809284]
[1771187247851,2.80628085,85.46,85.413,10.5437]
[1771187248052,2.80628085,85.46,85.413,15.95122017]
[1771187248347,2.80628085,85.46,85.414,5.40752017]
[1771187250356,10.5375,85.465,85.414,5.40752017]
[1771187250357,8.7302748,85.464,85.414,5.40752017]
[1771187250544,8.7302748,85.463,85.414,5.40752017]
[1771187250748,8.7302748,85.462,85.414,5.40752017]
[1771187250945,10.5375,85.465,85.414,5.40752017]
[1771187251354,10.5365,85.473,85.431,5.40747124]
[1771187254652,8.7302748,85.479,85.44,2.80628085]
[1771187254859,8.7302748,85.484,85.441,5.40005591]
[1771187255050,8.7302748,85.483,85.441,5.40005591]
[1771187255250,8.7302748,85.482,85.441,5.40005591]
[1771187255453,8.7302748,85.481,85.441,5.40005591]
[1771187255651,8.7302748,85.48,85.441,5.40005591]
[1771187255852,8.7302748,85.479,85.441,5.40005591]
[1771187256155,10.5352,85.483,85.441,5.40005591]
[1771187256458,8.7302748,85.482,85.441,5.40005591]
[1771187256658,8.7302748,85.481,85.441,5.40005591]
[1771187256856,8.7302748,85.48,85.441,5.40005591]
[1771187257051,8.7302748,85.482,85.441,5.40005591]
[1771187257256,8.7302748,85.481,85.441,5.40005591]
[1771187257559,8.7302748,85.48,85.441,5.40005591]
[1771187257761,8.7302748,85.482,85.441,5.40005591]
[1771187257962,8.7302748,85.481,85.441,5.40005591]
[1771187258157,8.7302748,85.48,85.441,5.40005591]
[1771187258364,10.5352,85.483,85.441,5.40005591]
[1771187258365,8.7302748,85.482,85.441,5.40005591]
[1771187258656,8.7302748,85.481,85.441,5.40005591]
[1771187258861,8.7302748,85.48,85.441,5.40005591]
[1771187259059,8.7302748,85.489,85.441,5.40005591]
[1771187259260,8.7302748,85.488,85.441,5.40005591]
[1771187259561,8.7302748,85.487,85.441,5.40005591]
[1771187259751,8.7302748,85.486,85.441,5.40005591]
[1771187259949,8.7302748,85.489,85.441,5.40005591]
[1771187260151,8.7302748,85.488,85.441,5.40005591]
[1771187260355,8.7302748,85.487,85.441,5.40005591]
[1771187260559,8.7302748,85.489,85.441,5.40005591]
[1771187260759,10.5347,85.487,85.441,5.40005591]
[1771187261060,19.2649748,85.487,85.441,5.40005591]
[1771187261259,10.5347,85.487,85.441,5.40005591]
[1771187265556,10.88571562,85.508,85.461,5.37494017]
[1771187265764,2.80628085,85.53,85.48,2.80628085]
[1771187265969,2.80628085,85.53,85.48,8.18122102]
[1771187266282,154.74,85.548,85.491,5.37494026]
[1771187266663,10.5284,85.539,85.491,5.37494026]
[1771187278570,2.80628085,85.54,85.491,5.37494026]
[1771187279870,13.33458085,85.54,85.491,5.37494026]
[1771187280170,10.5283,85.54,85.491,5.37494026]
[1771187280374,2.80628085,85.58,85.453,5.33868266]
[1771187280670,2.80628085,85.54,85.491,5.33868266]
[1771187281071,2.80628085,85.54,85.493,5.35484169]
[1771187281264,93.34,85.547,85.493,5.35484169]
[1771187281265,2.80628085,85.53,85.493,5.35484169]
[1771187282477,2.80628085,85.51,85.469,5.35484176]
[1771187284778,2.80628085,85.5,85.469,5.35484176]
[1771187285574,10.5328,85.503,85.451,5.25763033]
[1771187285879,2.80628085,85.48,85.451,5.25763033]
[1771187287677,2.80628085,85.49,85.451,5.25763033]
[1771187288073,10.5302,85.524,85.47,2.80628085]
[1771187288277,2.80628085,85.52,85.463,5.25985632]
[1771187288782,2.80628085,85.51,85.466,5.25985632]
[1771187290080,2.80628085,85.5,85.466,5.25985632]
[1771187290878,2.80628085,85.5,85.448,5.26337648]
[1771187292081,2.80628085,85.49,85.448,5.26337648]
[1771187295881,10.5332,85.5,85.448,5.26337648]
[1771187296082,2.80628085,85.49,85.448,5.26337648]
[1771187296980,10.5332,85.5,85.448,5.26337648]
[1771187297172,13.33948085,85.5,85.448,5.26337648]
[1771187297376,13.33948085,85.5,85.451,5.23643484]
[1771187297983,10.5341,85.492,85.451,5.23643484]
[1771187299578,10.5354,85.482,85.451,5.23643484]
[1771187300984,10.5354,85.482,85.442,11.32]
[1771187301381,10.5354,85.482,85.442,16.54816871]
[1771187301581,10.5354,85.482,85.443,5.22816871]
[1771187302481,10.5337,85.495,85.451,5.22816877]
[1771187308889,10.5328,85.503,85.452,5.23753458]
[1771187309781,10.5328,85.503,85.454,5.23498383]
[1771187312586,10.5328,85.503,85.46,2.8043066]
[1771187312781,10.5328,85.503,85.461,5.22808263]
[1771187315689,10.5317,85.512,85.471,5.22282581]
[1771187316090,2.8043066,85.54,85.481,5.22282586]
[1771187316289,10.5291,85.533,85.491,5.22282586]
[1771187323304,10.5291,85.533,85.492,21.29242833]
[1771187323600,10.5291,85.533,85.493,5.22242833]
[1771187331205,10.5291,85.533,85.492,16.07]
[1771187332306,10.5291,85.533,85.493,5.21338462]
[1771187333508,2.8043066,85.54,85.493,5.21338462]
[1771187333713,10.5282,85.541,85.493,5.21338462]
[1771187333918,8.4267808,85.561,85.5,2.8043066]
[1771187334215,35.15,85.605,85.521,5.2075341]
[1771187334216,2.8043066,85.57,85.521,5.2075341]
[1771187334411,2.8043066,85.56,85.51,5.2075341]
[1771187335719,10.5271,85.549,85.51,5.2075341]
[1771187336114,2.8043066,85.55,85.5,2.8043066]
[1771187336312,2.8043066,85.53,85.492,16.07]
[1771187336822,10.5287,85.536,85.493,5.18506902]
[1771187343216,21.0484,85.573,85.492,16.07]
[1771187343217,2.8043066,85.57,85.521,5.20112323]
[1771187343424,2.8043066,85.58,85.521,5.20112323]
[1771187343627,2.8043066,85.59,85.54,2.8043066]
[1771187343825,2.80434714,85.599,85.55,2.8043066]
[1771187344022,2.80434714,85.599,85.56,2.8043066]
[1771187344225,2.80434706,85.611,85.56,2.8043066]
[1771187344423,2.80434706,85.624,85.58,2.8043066]
[1771187344921,2.77288174,85.619,85.57,2.8043066]
[1771187345120,2.77288174,85.619,85.546,93.34]
[1771187345121,4.7e-06,85.628,85.61,2.8043066]
[1771187345326,2.8043066,85.66,85.61,2.8043066]
[1771187345527,10.514,85.656,85.61,2.8043066]
[1771187345922,10.514,85.656,85.536,163.7799]
[1771187345923,2.8043066,85.64,85.558,10.526]
[1771187346127,2.8043066,85.64,85.58,2.8043066]
[1771187346628,2.8043066,85.63,85.555,93.32]
[1771187346929,6.71839004,85.63,85.57,2.8043066]
[1771187347629,2.8043066,85.62,85.57,2.8043066]
[1771187348030,3.91408344,85.619,85.57,2.8043066]
[1771187348326,3.91408344,85.619,85.569,3.9990525]
[1771187348726,2.8043066,85.61,85.569,3.9990525]
[1771187349726,10.5199,85.608,85.569,3.9990525]
[1771187350528,3.91408344,85.616,85.57,2.8043066]
[1771187358538,3.91408344,85.616,85.571,15.31]
[1771187363442,3.7234002,85.614,85.571,15.31]
[1771187364633,10.5195,85.611,85.572,3.72106354]
[1771187364839,2.8043066,85.63,85.572,3.72106354]
[1771187365040,3.7234002,85.629,85.572,3.72106354]
[1771187365742,10.5183,85.621,85.58,6.52537014]
[1771187365930,10.5183,85.621,85.581,3.72106354]
[1771187367341,10.5167,85.634,85.6,2.8043066]
[1771187367736,10.5167,85.634,85.6,6.52537014]
[1771187367932,3.7234002,85.641,85.61,2.79436559]
[1771187369736,10.5155,85.644,85.61,2.79436559]